{"text_format":"1","workbook":"xlsx","n_sheets":3,"sheets":["Φύλλο1","Φύλλο2","Φύλλο3"],"not_rendered":{"charts":0,"images":2,"macros":0,"external_links":0,"defined_names":0,"comments":1,"pivot_tables":0},"unopened":[],"bounds":{"document_bytes":16777216,"sheet_cells":100000,"rows_first":2000,"rows_last":500,"rows_between":2000,"halvings":0,"cell_chars":16384,"cell_head_chars":4096},"cells_cut":0,"cells_raw":0,"read":"whole","date_system":"1900"}

{"sheet":"Φύλλο1","index":0,"n_rows":16,"n_cols":8,"rows_kept":16,"cut":false,"hidden":false,"merged":[]}
[null,null,null,"ΥΠΟΛΟΓΙΣΜΟΣ ΕΜΒΑΔΟΥ ΤΡΙΓΩΝΟΥ"]
[]
["α, β, γ: οι πλευρές του τριγώνου"]
["Ε: το εμβαδό του τριγώνου"]
["τ: το ημιάθροισμα των πλευρών του τριγώνου"]
[]
[]
["Πλευρά α","πλευρά β","πλευρά γ","Ημιάθροισμα πλευρων τριγώνου (τ)","τ-α","τ-β","τ-γ","Εμβαδό"]
[null,null,null,{"$f":"((1/2)*(A9+B9+C9))","v":0},{"$f":"D9-A9","v":0},{"$f":"D9-B9","v":0},{"$f":"D9-C9","v":0},{"$f":"POWER(D9*E9*F9*G9,0.5)","v":0}]
[null,null,null,0,{"$f":"D10-A10","v":0},{"$f":"D10-B10","v":0},{"$f":"D10-C10","v":0},0]
[null,null,null,0,0,0,0,0]
[null,null,null,0,0,0,0,0]
[null,null,null,0,0,0,0,0]
[null,null,null,0,0,0,0,0]
[null,null,null,0,0,0,0,0]
[null,null,null,null,null,null,null,{"$f":"SUM(H9:H15)","v":0}]

{"sheet":"Φύλλο2","index":1,"n_rows":0,"n_cols":0,"rows_kept":0,"cut":false,"hidden":false,"merged":[]}

{"sheet":"Φύλλο3","index":2,"n_rows":0,"n_cols":0,"rows_kept":0,"cut":false,"hidden":false,"merged":[]}